Cogmind - Beta 15 @@@ ROGUE MODE // 2025.08.15 @ 20:24:32 Player: Nika Jay Result: Self-destructed Performance ------------- Evolutions (6) 3000 Regions Visited (30) 6000 Robots Destroyed (350) 1750 Value Destroyed (16899) 16899 Prototype IDs (25) 500 Alien Tech Used (1) 200 Bonus (13175) 13175 TOTAL SCORE: 41524 Bonus ------- High Alert Combat Kills 4838 Follower Combat Kills 3180 Entered Garrisons 1400 Used RIF Installer 3500 Met Data Miner 300 Met Zhirov 300 Friendly Fire -343 Cogmind --------- Core Integrity 1136/1150 Matter 300/300 Energy 555/555 System Corruption 1% Temperature Cool (0) Movement Treading (240) Ox1 Location -4/Factory Parts ------- > --- POWER (3) -------- Neutrino Core Heavy Antimatter Reactor > --- PROPULSION (4) --- Improved Heavy Treads > --- UTILITY (8) ------ Advanced Heat Sink Huge Storage Unit IFF Parser Advanced Targeting Computer Improved Medium Armor Plating Improved Medium Armor Plating Graphene Brace Relay Coupler [Grunt] (33) > --- WEAPON (4) ------- Gauss Rifle Gauss Rifle KE Penetrator Railgun > --- INVENTORY (25) --- Improved Treads Improved Treads Improved Treads Advanced Medium Treads Advanced Medium Treads Flexi-carbon Leg Advanced Heat Sink High-capacity Matter Pod (200) Precision Matter Filter Hardened Heavy Armor Plating Relay Coupler [NC] (33) Relay Coupler [NC] (29) Relay Coupler [Grunt] (32) Relay Coupler [Sentry] (26) High-powered Tractor Beam Transdimensional Reconstructor Autogun Gauss Rifle Gauss Rifle Gauss Rifle Heavy Rocket Launcher Improved Remote Datajack Improved Plasma Cutter Phasing Sabre Peak State ------------ > --- POWER ------------ Neutrino Core Neutrino Core Heavy Antimatter Reactor > --- PROPULSION ------- Improved Heavy Treads Improved Heavy Treads > --- UTILITY ---------- Advanced Heat Sink Huge Storage Unit IFF Parser Advanced Targeting Computer Experimental Weapon Shielding Improved Medium Armor Plating Graphene Brace Relay Coupler [Grunt] > --- WEAPON ----------- Gauss Rifle Gauss Rifle KE Penetrator Railgun > --- INVENTORY -------- Improved Treads Improved Treads Advanced Medium Treads Advanced Medium Treads Carbon-fiber Leg Flexi-carbon Leg Advanced Heat Sink High-capacity Matter Pod Precision Matter Filter Hardened Heavy Armor Plating Relay Coupler [NC] Relay Coupler [NC] Relay Coupler [Grunt] Relay Coupler [Sentry] High-powered Tractor Beam Transdimensional Reconstructor Gauss Rifle Gauss Rifle Gauss Rifle Heavy Rocket Launcher Improved Remote Datajack Improved Plasma Cutter Phasing Sabre [Rating: 113] Favorites ----------- Power Neutrino Core Engine Reinforced Deuterium Engine Power Core Neutrino Core Reactor Heavy Antimatter Reactor Propulsion Aluminum Leg Treads Improved Heavy Treads Leg Aluminum Leg Wheel Wheel Utility Advanced Targeting Computer Device Advanced Heat Sink Storage High-capacity Storage Unit Processor Advanced Targeting Computer Hackware Relay Coupler [Grunt] Protection Layered Medium Armor Plating Weapon Gauss Rifle Energy Gun Advanced Beam Rifle Energy Cannon Heavy Ion Cannon Ballistic Gun Gauss Rifle Launcher Heavy Rocket Launcher Special Weapon Improved Remote Datajack Slashing Weapon Axe Build | -11 -10 -10 -9 -8 -8 -8 -8 -7 -7 -7 -7 -6 -6 -6 -6 -6 -6 -6 -6 -6 -6 -5 -5 -5 -5 -5 -5 -5 -4 -4 ------- Run | Yrd Mat Min Mat Mat Gar Mat Gar Fac Gar Fac Gar Fac Was Fac Gar Fac Gar Fac Low Low Dat Pro Fac Gar Fac Upp Upp Zhi Pro Fac Slots Evolved 12 | . . . 2 2 . . . 2 . . . 2 . . . . . . . . . . 2 . . . . . . 2 Power 2 | . . . . . . . . 1 . . . . . . . . . . . . . . 1 . . . . . . . Propulsion 2 | . . . 1 1 . . . . . . . . . . . . . . . . . . . . . . . . . . Utility 6 | . . . 1 1 . . . . . . . 2 . . . . . . . . . . 1 . . . . . . 1 Weapon 2 | . . . . . . . . 1 . . . . . . . . . . . . . . . . . . . . . 1 Parts Attached 273 | 7 4 3 7 16 40 21 12 3 15 15 33 4 5 2 16 1 9 4 1 8 . 3 13 16 . 2 1 3 4 5 Power 36 | 1 1 2 . 2 4 4 2 1 1 4 3 . . . 1 . . 1 . . . . 3 4 . . . 2 . . Engine 19 | 1 1 1 . 2 3 1 2 . 1 2 1 . . . 1 . . . . . . . 1 2 . . . . . . Core 16 | . . 1 . . 1 3 . 1 . 2 2 . . . . . . 1 . . . . 2 2 . . . 1 . . Reactor 1 | . . . . . . . . . . . . . . . . . . . . . . . . . . . . 1 . . Propulsion 76 | 2 1 . 1 5 19 10 3 . 8 2 11 1 3 . 2 . 3 . . 1 . . . 2 . . . . . 2 Treads 38 | . . . . . 6 4 3 . 3 . 8 1 3 . 2 . 3 . . 1 . . . 2 . . . . . 2 Leg 37 | 2 1 . 1 5 12 6 . . 5 2 3 . . . . . . . . . . . . . . . . . . . Wheel 1 | . . . . . 1 . . . . . . . . . . . . . . . . . . . . . . . . . Hover . | . . . . . . . . . . . . . . . . . . . . . . . . . . . . . . . Flight . | . . . . . . . . . . . . . . . . . . . . . . . . . . . . . . . Utility 88 | 2 1 1 3 5 10 5 4 1 3 1 6 3 1 2 9 1 2 . 1 7 . . 6 6 . 2 1 1 2 2 Device 36 | 1 . 1 1 3 4 3 1 1 1 . 1 1 . 2 3 . 1 . . 4 . . 2 3 . 1 . . 1 1 Storage 5 | 1 1 . . . . . . . . . . . . . 1 . . . . . . . 2 . . . . . . . Processor 5 | . . . 2 1 . 1 . . . . . . . . . . . . . . . . . . . . 1 . . . Hackware 7 | . . . . . . . . . . . 1 1 . . 2 . 1 . . 1 . . 1 . . . . . . . Protection 35 | . . . . 1 6 1 3 . 2 1 4 1 1 . 3 1 . . 1 2 . . 1 3 . 1 . 1 1 1 Artifact . | . . . . . . . . . . . . . . . . . . . . . . . . . . . . . . . Weapon 73 | 2 1 . 3 4 7 2 3 1 3 8 13 . 1 . 4 . 4 3 . . . 3 4 4 . . . . 2 1 Energy Gun 12 | . . . . 2 4 1 2 1 1 1 . . . . . . . . . . . . . . . . . . . . Energy Cannon 4 | . . . 1 . 2 . . . . . . . . . . . 1 . . . . . . . . . . . . . Ballistic Gun 50 | 2 . . 2 2 . . 1 . 2 7 11 . 1 . 3 . 3 3 . . . 3 3 4 . . . . 2 1 Ballistic Cannon . | . . . . . . . . . . . . . . . . . . . . . . . . . . . . . . . Launcher 3 | . 1 . . . 1 . . . . . 1 . . . . . . . . . . . . . . . . . . . Special Weapon 1 | . . . . . . . . . . . . . . . . . . . . . . . 1 . . . . . . . Impact Weapon . | . . . . . . . . . . . . . . . . . . . . . . . . . . . . . . . Slashing Weapon 3 | . . . . . . 1 . . . . 1 . . . 1 . . . . . . . . . . . . . . . Piercing Weapon . | . . . . . . . . . . . . . . . . . . . . . . . . . . . . . . . Special Melee Weapon . | . . . . . . . . . . . . . . . . . . . . . . . . . . . . . . . Unidentified Prototypes 9 | . . . . 1 . 1 . . . . . . 1 . 1 . 1 . . 1 . . . . . . . 3 . . Corrupted Parts 2 | . 1 . . . . . . . . . . . . . . . 1 . . . . . . . . . . . . . System Corruption 2 | . 1 . . . . . . . . . . . . . . . 1 . . . . . . . . . . . . . Parts Lost 60 | . . . . 3 17 2 2 . . 3 7 . . . 2 . . . 1 . . 6 3 7 . 1 1 . 3 2 Power 8 | . . . . . 2 1 . . . 1 . . . . . . . . . . . . 1 . . . 1 . 1 1 Propulsion 19 | . . . . 1 8 1 2 . . . 4 . . . . . . . . . . 1 . 1 . . . . . 1 Utility 17 | . . . . 1 4 . . . . 1 1 . . . . . . . 1 . . 2 2 3 . 1 . . 1 . Weapon 16 | . . . . 1 3 . . . . 1 2 . . . 2 . . . . . . 3 . 3 . . . . 1 . Highest Loss Streak 8 | . . . . 1 8 1 1 . . 3 4 . . . 2 . . . 1 . . 4 1 4 . 1 1 . 2 2 To Critical Strikes . | . . . . . . . . . . . . . . . . . . . . . . . . . . . . . . . Average Backups 20 | 1 7 12 14 19 19 19 19 18 19 19 19 18 18 17 18 23 24 25 25 25 26 22 24 22 24 25 25 25 24 23 Power . | . . . 1 . . . 1 1 1 1 1 . . . . . . 1 1 1 1 1 1 2 1 1 1 1 1 . Propulsion 3 | . 1 4 4 3 3 3 3 2 2 2 1 3 3 3 3 3 4 4 4 3 3 2 2 2 5 6 6 4 4 5 Utility 8 | . 2 3 4 5 8 10 10 10 9 7 6 5 6 6 7 11 12 12 12 12 14 12 10 7 7 8 8 9 9 8 Weapon 6 | . 2 2 5 9 7 4 4 3 6 7 7 6 7 7 6 7 6 7 7 7 7 5 8 7 8 8 8 7 6 5 Tool/Special . | . . . . . . . . . . . . . . . . . . . . . . . . . . . . . . . Unused Backups 96 | . 3 . . 10 8 9 1 1 5 6 7 2 6 2 2 . 1 1 . 1 . . 6 2 2 . . 2 . 19 Power 6 | . . . . 2 . 1 . . . . . 1 . . . . . . . . . . 1 . 1 . . . . . Propulsion 23 | . 2 . . . 1 5 . . 2 . . . 4 1 . . . . . . . . . . . . . 2 . 6 Utility 31 | . . . . . 4 2 1 1 3 1 5 . 1 1 . . . . . . . . 2 1 1 . . . . 8 Weapon 31 | . 1 . . 8 3 1 . . . 4 2 1 . . 2 . 1 1 . 1 . . 2 1 . . . . . 3 Tool/Special 5 | . . . . . . . . . . 1 . . 1 . . . . . . . . . 1 . . . . . . 2 Average Slot Usage (%) 89 | . 97 99 98 98 97 99 99 96 99 99 99 95 81 80 78 80 80 80 79 73 62 79 82 83 82 81 77 61 82 84 Engine 4 | . 14 2 . 8 3 4 6 7 7 10 9 6 6 6 6 6 6 3 . . . . 1 4 5 5 . . . . Core 7 | . . 11 11 . 4 4 2 7 7 3 4 6 6 6 6 6 6 8 13 13 13 13 13 11 11 11 11 13 16 10 Treads 11 | . . . . . 7 7 35 29 13 . 13 25 15 13 13 13 13 13 13 13 13 13 11 11 11 11 11 11 11 12 Leg 10 | . 27 28 33 35 25 28 . . 16 30 16 . . . . . . . . . . . . . . . . . . . Device 9 | . 11 13 9 11 13 18 10 3 6 7 7 9 6 6 5 6 6 6 6 6 6 6 13 12 11 11 11 11 11 11 Storage 6 | . 14 14 11 9 9 9 9 7 7 7 7 5 6 6 6 6 6 6 6 6 6 6 5 5 5 5 5 5 5 5 Processor 5 | . . . 10 9 7 . 9 7 7 7 7 6 6 6 6 6 6 6 6 6 6 6 3 . . . 3 5 5 5 Hackware 3 | . . . . . . . . . . . . 5 6 6 4 6 6 6 5 . 6 6 6 11 11 10 5 5 5 5 Protection 6 | . . . . 4 6 8 7 10 7 7 6 6 6 6 7 6 6 6 6 5 6 5 5 5 5 5 7 5 6 10 Energy Gun 3 | . . . . 6 16 . 9 11 11 4 . . . . . . . . . . . . . . . . . . . . Energy Cannon 1 | . . . . . 1 17 4 . . . . . . . . . . . . . . . . . . . . . . . Ballistic Gun 14 | . 27 28 21 11 . . . 7 10 17 21 20 20 19 19 20 19 20 20 20 2 20 16 16 17 17 17 . 16 17 Peak Build Rating 113 | 7 7 10 14 29 35 42 44 47 46 45 53 66 81 82 86 81 84 86 86 88 85 85 108 105 99 99 98 102 103 113 Average Rating 62 | 6 6 9 13 22 30 33 40 44 41 42 40 63 77 81 80 78 81 84 85 81 71 81 103 100 98 98 94 82 101 104 On Entrance 62 | . 7 7 10 14 29 31 40 40 46 42 40 53 64 81 82 78 79 82 86 83 85 85 81 103 99 99 98 94 102 96 Naked Turns . | . . . . . . . . . . . . . . . . . . . . . . . . . . . . . . . Heaviest Build 224 | 12 47 49 49 59 72 74 81 79 75 83 92 104 110 110 210 191 192 198 195 195 194 194 224 160 150 154 154 154 154 162 Greatest Support 150 | 20 20 20 30 45 80 80 90 90 90 55 67 97 140 140 150 150 150 150 150 150 145 145 145 150 150 150 150 150 150 150 Greatest Overweight (x) 6 | . 4 2 1 1 6 2 1 1 1 1 2 1 1 . 1 1 1 1 1 1 1 1 1 1 . 1 1 1 1 1 Average Overweight (x) . | . . 2 1 1 1 . . . . 1 1 . . . . 1 1 1 1 1 1 1 . . . . . . . . Largest Inventory Capacity 30 | 8 20 20 20 20 20 20 20 20 20 20 20 20 20 20 30 30 30 30 30 30 30 30 30 25 25 25 25 25 25 25 Average Capacity 23 | 7 9 20 20 20 20 20 20 20 20 20 20 19 20 20 25 30 30 30 30 30 30 30 28 25 25 25 25 25 25 25 Most Carried 30 | 5 8 13 17 20 20 20 20 20 20 20 20 20 20 20 28 30 30 30 30 30 30 30 30 25 25 25 25 25 25 25 Average Carried 22 | 1 7 12 14 19 19 19 19 18 19 19 19 18 19 19 23 29 29 29 29 29 30 25 27 23 24 24 25 24 24 24 Final Capacity 30 | 8 20 20 20 20 20 20 20 20 20 20 20 20 20 20 30 30 30 30 30 30 30 30 25 25 25 25 25 25 25 25 Final Carried 30 | 5 8 13 17 20 20 20 20 19 20 20 19 20 20 20 28 30 30 30 30 30 30 23 24 25 25 25 25 25 23 25 Class Distribution -------------------- 22% | Scavenger-Mutant 20% | Bothacker-Tank 20% | Botlord-Tank 11% | Scavenger-Gunner 7% | Scavenger-Tank 7% | Bothacker-Gunner 6% | Mutant 3% | Bothacker-Mutant Dominant Class ---------------- Mutant | -10/Materials Mutant | -10/Mines Scavenger-Mutant | -9/Materials Scavenger-Mutant | -8/Materials Scavenger-Mutant | -8/Garrison Scavenger-Mutant | -8/Materials Scavenger-Mutant | -8/Garrison Scavenger-Gunner | -7/Factory Scavenger-Gunner | -7/Garrison Bothacker-Gunner | -7/Factory Bothacker-Gunner | -7/Garrison Scavenger-Gunner | -6/Factory Scavenger-Tank | -6/Waste Scavenger-Tank | -6/Factory Bothacker-Tank | -6/Garrison Bothacker-Tank | -6/Factory Bothacker-Tank | -6/Garrison Botlord-Tank | -6/Factory Botlord-Tank | -6/Lower Caves Bothacker-Tank | -6/Lower Caves Bothacker-Mutant | -6/Data Miner Bothacker-Tank | -5/Proximity Caves Bothacker-Tank | -5/Factory Botlord-Tank | -5/Garrison Botlord-Tank | -5/Factory Botlord-Tank | -5/Upper Caves Botlord-Tank | -5/Upper Caves Botlord-Mutant | -5/Zhirov Botlord-Tank | -4/Proximity Caves Botlord-Tank | -4/Factory Resources | -11 -10 -10 -9 -8 -8 -8 -8 -7 -7 -7 -7 -6 -6 -6 -6 -6 -6 -6 -6 -6 -6 -5 -5 -5 -5 -5 -5 -5 -4 -4 ----------- Run | Yrd Mat Min Mat Mat Gar Mat Gar Fac Gar Fac Gar Fac Was Fac Gar Fac Gar Fac Low Low Dat Pro Fac Gar Fac Upp Upp Zhi Pro Fac Matter Collected 12726 | 402 201 96 156 462 575 411 273 30 468 506 1419 438 97 140 970 . 670 225 380 338 . 631 1165 1535 90 307 141 . 360 240 Remotely 1361 | . . . . . . . . . . . . . . . . . . . . 143 . 66 447 546 . . . . . 159 Salvage Created 17501 | 293 295 107 179 892 1060 1325 1111 . 1076 877 1347 470 . 147 2140 . 1106 145 267 505 . 395 1549 1181 . 528 100 . 166 240 Parts 847 | 21 18 12 14 50 53 72 45 . 41 42 93 16 . 3 81 . 38 5 17 24 . 18 77 66 . 17 6 . 7 11 Haulers Intercepted 10 | . 1 . . 2 . 3 . . . 2 . . . 1 . . . . . 1 . . . . . . . . . . Recyclers Shooed 14 | . 2 1 . . . . . . . 1 . 3 . . . . . 1 . . . . 6 . . . . . . . Parts Field Recycled . | . . . . . . . . . . . . . . . . . . . . . . . . . . . . . . . Retrieved Matter . | . . . . . . . . . . . . . . . . . . . . . . . . . . . . . . . Parts Self-Destructed 108 | . . . . . . . . . . . . . . . . . . . 29 23 . 18 . . . 25 6 . 7 . Prevented 2 | . . . . . . . . . . . . . . . . . . . . . . . . . . . . . 2 . Kills | -11 -10 -10 -9 -8 -8 -8 -8 -7 -7 -7 -7 -6 -6 -6 -6 -6 -6 -6 -6 -6 -6 -5 -5 -5 -5 -5 -5 -5 -4 -4 ------- Run | Yrd Mat Min Mat Mat Gar Mat Gar Fac Gar Fac Gar Fac Was Fac Gar Fac Gar Fac Low Low Dat Pro Fac Gar Fac Upp Upp Zhi Pro Fac Combat Hostiles Destroyed 279 | . 8 2 6 15 30 19 23 . 18 9 40 6 . 2 25 . 8 . 6 6 . 7 12 21 . 7 1 . 4 4 Melee 2 | . . . . . . . 2 . . . . . . . . . . . . . . . . . . . . . . . Guns 200 | . 5 2 6 14 19 . 5 . 17 9 26 6 . . 22 . 8 . 6 6 . 7 9 17 . 7 1 . 4 4 Cannons 26 | . . . . . . 17 9 . . . . . . . . . . . . . . . . . . . . . . . AOE 44 | . 3 . . . 10 2 3 . . . 14 . . 2 3 . . . . . . . 3 4 . . . . . . Classes Destroyed 19 | 3 4 . . 3 2 2 1 . . . 2 . . . . . . . . . . 1 1 . . . . . . . Worker 15 | 2 . . . 2 . 2 . . . 2 . . . . . . . 1 . . . . 5 . . . . . . 1 Builder 3 | . . . . 1 . 1 . . . 1 . . . . . . . . . . . . . . . . . . . . Tunneler 10 | 8 . 1 . 1 . . . . . . . . . . . . . . . . . . . . . . . . . . Hauler 10 | . 1 . . 2 . 3 . . . 2 . . . 1 . . . . . 1 . . . . . . . . . . Recycler 17 | 1 1 . 1 1 . 1 . . . 3 . 1 . . . . . 1 . . . . 7 . . . . . . . Mechanic 1 | . . . . . . . . . . . . . . . . . . . . . . . 1 . . . . . . . Operator 2 | . . . . . . 1 . . . . 1 . . . . . . . . . . . . . . . . . . . Drone 2 | . . . . . . . . . . . . . . . . . . . . . . 2 . . . . . . . . Watcher 10 | . 2 . . 2 . 4 . . . 1 . . . . . . . . . . . . 1 . . . . . . . Swarmer 82 | . 6 . 6 4 8 2 4 . . 2 21 . . . 3 . . . 4 . . . 7 8 . 1 . . 3 3 Grunt 89 | . 2 2 . 6 12 8 8 . 7 2 5 3 . 2 8 . 6 . 2 5 . 3 2 6 . . . . . . Brawler 8 | . . . . . . . . . . . 2 1 . . 1 . . . . . . 1 . . . 2 . . . 1 Duelist 6 | . . . . . 1 . . . 2 . 1 . . . . . . . . . . . . 1 . 1 . . . . Sentry 52 | . . . . 4 7 7 4 . 7 2 4 . . . 11 . . . . . . . . 4 . 2 . . . . Specialist 5 | . . . . . . 2 1 . . . 2 . . . . . . . . . . . . . . . . . . . Hunter 11 | . . . . 1 . . 2 . 2 1 . 1 . . 1 . . . . . . . 1 2 . . . . . . Programmer 17 | . . . . . . . 3 . . 2 4 1 . . 1 . 2 . . 1 . . 2 . . . . . . 1 Heavy 1 | . . . . . . . . . . . 1 . . . . . . . . . . . . . . . . . . . Behemoth 7 | . . . . . 2 . 1 . . . . . . . . . . . . . . 1 . 1 . . 1 . 1 . Savage 1 | . . . . . . . . . . . . . . . . . . . . . . . . . . 1 . . . . Butcher 1 | . . . . . 1 . . . . . . . . . . . . . . . . . . . . . . . . . Best Kill Streak 11 | 3 4 2 5 6 11 5 9 . 5 3 7 4 . 2 10 . 3 1 2 5 . 3 7 6 . 4 1 . 3 3 Combat Bots Only 11 | . 3 2 4 5 11 3 9 . 5 2 7 4 . 2 10 . 3 . 2 5 . 3 4 6 . 4 1 . 3 3 Max Kills in Single Turn 4 | 1 2 1 1 1 3 2 3 . 2 1 4 1 . 2 2 . 1 1 1 2 . 1 4 3 . 2 1 . 2 2 Gunslinging 1 | . . . . . . . . . 1 . 1 . . . . . . . . 1 . . . . . . . . . . Exploded 4 | . 2 . . . 3 2 3 . . . 4 . . 2 2 . . . . . . . 2 3 . . . . . . Melee 1 | . . . . . . . 1 . . . . . . . . . . . . . . . . . . . . . . . Uniques/NPCs Destroyed . | . . . . . . . . . . . . . . . . . . . . . . . . . . . . . . . Combat | -11 -10 -10 -9 -8 -8 -8 -8 -7 -7 -7 -7 -6 -6 -6 -6 -6 -6 -6 -6 -6 -6 -5 -5 -5 -5 -5 -5 -5 -4 -4 -------- Run | Yrd Mat Min Mat Mat Gar Mat Gar Fac Gar Fac Gar Fac Was Fac Gar Fac Gar Fac Low Low Dat Pro Fac Gar Fac Upp Upp Zhi Pro Fac Hostile Shots Fired 2173 | . 22 11 23 95 181 111 173 9 221 104 279 29 . 18 275 . 51 37 21 38 . 60 87 210 2 19 18 . 53 26 Missed 579 | . 8 2 8 25 57 40 36 4 77 27 84 8 . 8 67 . 6 15 8 15 . 12 16 36 1 6 5 . 6 2 Hits 1594 | . 14 9 15 70 124 71 137 5 144 77 195 21 . 10 208 . 45 22 13 23 . 48 71 174 1 13 13 . 47 24 Melee 21 | . . . . . . . . . 6 . 4 1 . . . . 1 . . . . . . 7 . 2 . . . . Projectile 1573 | . 14 9 15 70 124 71 137 5 138 77 191 20 . 10 208 . 44 22 13 23 . 48 71 167 1 11 13 . 47 24 AOE 2 | . . . . . . . . . . . . 1 . . . . 1 . . . . . . . . . . . . . Critical Strikes 63 | . . 1 1 2 7 4 6 . 2 1 11 1 . . 4 . 5 . . 1 . 2 2 4 . 3 . . 6 . Actively Blocked 14 | . . . . . . . . . . . . . . . . . . . . . . . 1 4 . 3 . . 6 . Part Disruptions 2 | . . . . . . . . . . . . . . . . . . . . . . . 2 . . . . . . . Damage Taken 25036 | . 149 114 119 836 2649 1119 2122 38 1516 874 2779 457 . 237 2248 . 890 417 256 407 . 1111 768 3432 19 295 355 . 1443 386 Core 1836 | . 34 10 . 138 158 30 220 . 163 36 253 60 . 46 153 . 34 60 44 18 . 24 26 249 . 66 . . . 14 Absorbed by Shields 1127 | . . . . . . 18 42 . . . 83 . . . . . 25 . . . . . 591 368 . . . . . . Reduced by Siege Mode 770 | . . . . . . . . . . . . . . . 121 . 60 . . 25 . 128 12 282 . . 18 . 120 4 Redirected to Shielding 129 | . . . . . . . . . . . . . . . . . . . . . . . . . . . . . 129 . Ignored by Resistances 101 | . . . . . . . . . . 31 . . . . . . . . . . . 70 . . . . . . . . Regen/Repaired (Parts) 2441 | . . . . . . 145 . . . . . 467 465 172 180 473 . . . . . . . . . . . . . 539 Core Remaining (%) 61 | 100 . 82 100 . . . . . . . 35 . . . . . . . . . . 48 . . . . . . 65 . Volleys Fired 973 | 33 33 10 15 68 104 64 77 . 72 43 87 19 . 7 64 . 42 12 13 14 . 31 43 74 . 18 6 . 17 7 Largest 4 | 2 2 2 2 2 2 2 2 . 3 3 3 3 . 3 3 . 3 3 3 3 . 3 3 3 . 3 3 . 3 4 Hottest 160 | 40 40 40 68 122 160 130 130 . 145 112 84 84 . 86 89 . 84 99 99 99 . 99 105 105 . 98 96 . 96 124 Shots Fired 2347 | 66 64 20 29 129 187 119 141 . 168 120 230 57 1 15 186 . 124 36 40 44 . 95 124 200 . 54 19 . 52 27 Gun 2161 | 66 62 20 28 129 179 . 102 . 168 120 223 57 1 12 184 . 124 36 40 44 . 95 122 197 . 54 19 . 52 27 Cannon 157 | . . . 1 . . 118 38 . . . . . . . . . . . . . . . . . . . . . . . Launcher 29 | . 2 . . . 8 1 1 . . . 7 . . 3 2 . . . . . . . 2 3 . . . . . . Special . | . . . . . . . . . . . . . . . . . . . . . . . . . . . . . . . Kinetic 1723 | 66 62 20 28 81 . . . . 75 104 223 57 1 12 184 . 124 36 40 44 . 95 122 197 . 54 19 . 52 27 Thermal 595 | . . . 1 48 179 118 140 . 93 16 . . . . . . . . . . . . . . . . . . . . Explosive 29 | . 2 . . . 8 1 1 . . . 7 . . 3 2 . . . . . . . 2 3 . . . . . . Electromagnetic . | . . . . . . . . . . . . . . . . . . . . . . . . . . . . . . . Robot Hit Streak 34 | 5 4 9 4 11 23 19 23 . 34 12 22 15 . 8 26 . 16 11 9 18 . 25 11 25 . 13 11 . 27 5 Robot Miss Streak 5 | 3 3 2 4 2 3 3 1 . 4 3 3 2 1 2 4 . 3 2 5 3 . 2 5 5 . 4 1 . 2 4 Penetration Max 2 | . . . . . . . . . 1 1 . 1 . . 1 . . 1 1 . . . 1 2 . 2 . . 1 1 Secondary Targets 38 | . . 1 2 2 . . 2 . 7 . 4 . . . 2 . 3 . 1 4 . 1 3 5 . . . . . 1 Max Gunslinging Chain 2 | . . 1 1 1 . . 1 . 2 . 1 . . . 1 . 1 . 1 1 . 1 1 1 . . . . . 1 Shots Hit Robots 1674 | 40 36 14 15 94 115 72 108 . 116 75 168 40 1 9 164 . 120 26 26 28 . 77 76 150 . 29 15 . 44 16 Core Hits 747 | 14 17 7 8 43 62 38 40 . 44 30 76 20 1 9 68 . 41 13 15 15 . 27 45 75 . 16 6 . 9 8 Critical Kills 55 | . . . . 2 . 1 . . . 1 . 1 . . 2 . . 1 5 7 . 2 17 12 . 4 . . . . Critical Parts Destroyed 86 | . . 1 . . . . . . 2 . 2 . . . 7 . 2 6 5 5 . 6 18 24 . 6 2 . . . Critical Strikes 198 | . . 1 . 5 8 1 9 . 12 1 3 1 . . 9 . 3 7 10 12 . 15 35 48 . 11 4 . 3 . Burn 30 | . . . . 3 8 . 9 . 10 . . . . . . . . . . . . . . . . . . . . . Meltdown 1 | . . . . . . 1 . . . . . . . . . . . . . . . . . . . . . . . . Destroy 166 | . . 1 . 2 . . . . 2 1 3 1 . . 9 . 2 7 10 12 . 15 35 48 . 11 4 . 3 . Sever 1 | . . . . . . . . . . . . . . . . . 1 . . . . . . . . . . . . . Melee Attacks 133 | . . . . . . 2 24 . 1 . 39 . 1 . 30 . 31 . . . . . 2 3 . . . . . . Impact . | . . . . . . . . . . . . . . . . . . . . . . . . . . . . . . . Slashing 133 | . . . . . . 2 24 . 1 . 39 . 1 . 30 . 31 . . . . . 2 3 . . . . . . Piercing . | . . . . . . . . . . . . . . . . . . . . . . . . . . . . . . . Sneak Attacks 1 | . . . . . . . . . . . 1 . . . . . . . . . . . . . . . . . . . Combat Hostiles . | . . . . . . . . . . . . . . . . . . . . . . . . . . . . . . . Follow-up Attacks . | . . . . . . . . . . . . . . . . . . . . . . . . . . . . . . . Damage Inflicted 37936 | 434 480 157 156 1590 3603 2174 2598 . 1982 1524 4635 916 49 845 5774 13 3896 219 193 194 . 896 1507 1890 16 427 262 . 1048 458 Guns 24413 | 434 363 151 156 1571 2659 . 1013 . 1982 1436 3010 897 17 250 3248 . 1632 174 193 194 . 896 692 1250 . 427 262 . 1048 458 Cannons 2824 | . . . . . . 2017 807 . . . . . . . . . . . . . . . . . . . . . . . Explosions 5280 | . 112 . . . 944 78 230 . . 77 1533 . . 595 348 . . . . . . . 723 640 . . . . . . Melee 5139 | . . . . . . 37 548 . . . 92 . 32 . 2166 . 2264 . . . . . . . . . . . . . Ramming 280 | . 5 6 . 19 . 42 . . . 11 . 19 . . 12 13 . 45 . . . . 92 . 16 . . . . . Kinetic 18715 | 434 363 151 156 811 . . . . 916 1236 3010 897 17 250 3248 . 1632 174 193 194 . 896 692 1250 . 427 262 . 1048 458 Thermal 8599 | . . . . 760 2659 2017 1820 . 1066 277 . . . . . . . . . . . . . . . . . . . . Explosive 5175 | . 112 . . . 944 78 230 . . . 1533 . . 595 348 . . . . . . . 695 640 . . . . . . Electromagnetic 28 | . . . . . . . . . . . . . . . . . . . . . . . 28 . . . . . . . Impact . | . . . . . . . . . . . . . . . . . . . . . . . . . . . . . . . Slashing 5139 | . . . . . . 37 548 . . . 92 . 32 . 2166 . 2264 . . . . . . . . . . . . . Piercing . | . . . . . . . . . . . . . . . . . . . . . . . . . . . . . . . Highest Corruption 9 | . 1 1 . . . 2 4 . . 2 5 1 1 1 . . 2 2 2 2 2 2 7 7 7 9 9 9 9 1 Average Corruption 3 | . 1 1 . . . 2 2 . . 1 4 1 1 1 . . 1 2 2 2 2 2 5 7 7 7 9 9 9 1 Corruption Purged 1 | . . . . . . . . . . . . . . 1 . . . . . . . . . . . . . . . . Corruption Blocked . | . . . . . . . . . . . . . . . . . . . . . . . . . . . . . . . Effects 329 | . . 2 . . . 26 16 . . 7 59 . 9 1 . . 10 12 10 16 4 11 16 59 7 19 20 4 17 4 Message Errors 68 | . . 1 . . . 3 1 . . 1 16 . 1 . . . 1 1 2 5 1 2 4 8 1 4 7 1 6 2 Matter Fused 70 | . . . . . . 7 3 . . 1 8 . 3 . . . 2 3 1 3 1 3 3 14 2 8 5 . 3 . Heat Flow Errors 48 | . . . . . . 4 1 . . 1 9 . . . . . 2 3 2 2 1 2 4 11 1 1 1 2 1 . Energy Discharges 43 | . . . . . . 5 2 . . 1 7 . 2 . . . 2 1 2 1 1 1 2 8 1 1 1 1 3 1 Parts Rejected 3 | . . . . . . . . . . . 1 . . . . . 1 1 . . . . . . . . . . . . Parts Fused 3 | . . . . . . . 1 . . . . . . 1 . . . . . . . . . 1 . . . . . . Data Loss (minor) 39 | . . 1 . . . . 2 . . 1 7 . 2 . . . 1 1 2 2 . 1 . 10 2 3 2 . 1 1 Data Loss (major) 14 | . . . . . . 2 . . . . 3 . . . . . . 1 . 1 . . 1 4 . 1 1 . . . Misfires 23 | . . . . . . 3 2 . . 1 4 . 1 . . . 1 . 1 2 . 2 . 2 . . 2 . 2 . Alerts 12 | . . . . . . 1 3 . . 1 3 . . . . . . 1 . . . . 1 1 . 1 . . . . Weapon Failures 6 | . . . . . . 1 1 . . . 1 . . . . . . . . . . . 1 . . . 1 . 1 . Overload Shots . | . . . . . . . . . . . . . . . . . . . . . . . . . . . . . . . Overflow Damage 378 | . . . . . 48 17 89 . . 10 62 . . 1 60 . 5 . . . . . 86 . . . . . . . Projectiles 17 | . . . . . . 17 . . . . . . . . . . . . . . . . . . . . . . . . Explosions 176 | . . . . . 48 . 18 . . 10 20 . . 1 . . . . . . . . 79 . . . . . . . Melee 185 | . . . . . . . 71 . . . 42 . . . 60 . 5 . . . . . 7 . . . . . . . Knockbacks 3 | . . . . . . . . . . 1 . . . . . . . . . . . . 2 . . . . . . . Impact 3 | . . . . . . . . . . 1 . . . . . . . . . . . . 2 . . . . . . . Kinetic . | . . . . . . . . . . . . . . . . . . . . . . . . . . . . . . . Secondary . | . . . . . . . . . . . . . . . . . . . . . . . . . . . . . . . Self-Inflicted Damage 495 | . . . . . 139 . . . . 100 97 . . . . . . . . . . . 159 . . . . . . . Shots 13 | . . . . . 4 . . . . 1 3 . . . . . . . . . . . 5 . . . . . . . Rammed 20 | . . . . . . 1 . . . . . 3 . . 1 1 . 6 . . . . 6 . 2 . . . . . Targets Rammed 31 | . 1 1 . 3 . 3 . . . 3 . 3 . . 1 1 . 7 . . . . 6 . 2 . . . . . Kicked 10 | . 1 1 . 3 . 2 . . . 3 . . . . . . . . . . . . . . . . . . . . Crushed 1 | . . . . . . . . . . . . . . . . . . 1 . . . . . . . . . . . . Highest Temperature 411 | . 6 33 26 276 202 411 273 4 48 227 233 37 . 30 244 . 231 253 227 192 64 136 185 254 203 216 253 203 222 . Average Temperature 60 | . 6 11 14 87 60 100 54 4 14 60 60 17 . 12 43 . 50 115 112 38 44 50 58 90 105 20 58 109 51 . Received Heat Transfer 5868 | . 30 84 . 261 726 522 653 12 396 123 387 72 . 72 579 . 372 63 21 138 . 351 40 795 . 18 36 . 108 9 Effects 9 | . . . . 2 . 3 . . . . 3 . . . . . . . . . . . . 1 . . . . . . Energy Bleed 1 | . . . . . . . . . . . . . . . . . . . . . . . . 1 . . . . . . Interference 8 | . . . . 2 . 3 . . . . 3 . . . . . . . . . . . . . . . . . . . Siege Activations 24 | . . . . . . . . . . . . . . . 3 . 1 . . 1 . 3 2 10 . . 1 . 2 1 Total Turns 652 | . . . . . . . . . . . . . . . 69 . 34 . . 20 . 117 60 277 . . 14 . 54 7 Longest Duration 54 | . . . . . . . . . . . . . . . 37 . 34 . . 20 . 54 47 50 . . 14 . 39 7 Martial Activations . | . . . . . . . . . . . . . . . . . . . . . . . . . . . . . . . Shielding Activations . | . . . . . . . . . . . . . . . . . . . . . . . . . . . . . . . Robots Disrupted . | . . . . . . . . . . . . . . . . . . . . . . . . . . . . . . . Combat Hostiles . | . . . . . . . . . . . . . . . . . . . . . . . . . . . . . . . Robots Corrupted 1 | . . . . . . . . . . . . . . . . . . . . . . . 1 . . . . . . . Combat Hostiles . | . . . . . . . . . . . . . . . . . . . . . . . . . . . . . . . Parts Fried 2 | . . . . . . . . . . . . . . . . . . . . . . . 2 . . . . . . . Impact Corruptions 1 | . . . . . . . . . . . . . . . . . . . . . . . 1 . . . . . . . Robots Melted 8 | . . . . 1 1 1 4 . 1 . . . . . . . . . . . . . . . . . . . . . Combat Hostiles 7 | . . . . 1 1 . 4 . 1 . . . . . . . . . . . . . . . . . . . . . Parts Melted 44 | . . . . 4 9 5 17 . 9 . . . . . . . . . . . . . . . . . . . . . Heat Transferred 17580 | . . . . 1628 5812 2775 4047 . 2848 470 . . . . . . . . . . . . . . . . . . . . Parts Sabotaged . | . . . . . . . . . . . . . . . . . . . . . . . . . . . . . . . Parts Stolen . | . . . . . . . . . . . . . . . . . . . . . . . . . . . . . . . Parts Stripped . | . . . . . . . . . . . . . . . . . . . . . . . . . . . . . . . Power Chain Reactions 1 | . . . . . . . . . . . . . . . . . . . . . . . 1 . . . . . . . Alert | -11 -10 -10 -9 -8 -8 -8 -8 -7 -7 -7 -7 -6 -6 -6 -6 -6 -6 -6 -6 -6 -6 -5 -5 -5 -5 -5 -5 -5 -4 -4 ------- Run | Yrd Mat Min Mat Mat Gar Mat Gar Fac Gar Fac Gar Fac Was Fac Gar Fac Gar Fac Low Low Dat Pro Fac Gar Fac Upp Upp Zhi Pro Fac Maximum Alert Level 5 | . . . . 1 5 4 4 3 3 2 5 4 1 2 5 4 5 3 . . . . 1 4 2 . . . . . Low Security (%) 19 | 100 100 100 100 87 1 . . . . . . . 64 55 . . . . . . . . 90 5 . . . . . 100 Level 1 10 | . . . . 12 6 . . . . 70 7 . 35 17 . . . . . . . . 9 23 . . . . . . Level 2 12 | . . . . . 14 . . 37 44 29 19 . . 26 8 . . . . . . . . 20 100 . . . . . Level 3 24 | . . . . . 20 68 56 62 55 . 14 64 . . 10 . 27 99 . . . . . 24 . . . . . . Level 4 19 | . . . . . 26 31 44 . . . 30 35 . . 33 100 43 . . . . . . 25 . . . . . . Level 5 12 | . . . . . 31 . . . . . 27 . . . 47 . 29 . . . . . . . . . . . . . High Security . | . . . . . . . . . . . . . . . . . . . . . . . . . . . . . . . Max Security . | . . . . . . . . . . . . . . . . . . . . . . . . . . . . . . . Peak Influence 2376 | 15 164 96 90 229 2376 1223 1452 762 1004 527 2325 1231 313 583 2282 1197 1730 907 . . . . 243 1313 688 . . . . 102 Initial 1220 | . 3 46 . 26 135 1158 791 762 456 527 275 1220 313 7 403 1197 785 907 . . . . 150 164 688 . . . . 55 Average 841 | 2 122 33 29 77 1249 1072 1089 710 743 382 1204 1020 154 230 1570 1161 1326 776 . . . . 81 708 643 . . . . 17 Influence Increases 15802 | 55 301 55 188 558 2431 669 741 . 588 419 2120 159 . 877 2149 5 1085 249 271 135 . 130 614 1279 57 324 33 . 154 156 Destroy 0b10 Robot/C 7400 | . 160 40 120 300 700 380 560 . 360 180 800 120 . 320 1000 . 560 140 220 120 . 100 240 540 20 200 20 . 120 80 Destroy 0b10 Robot/NC 430 | 55 20 5 5 45 . 60 5 . . 45 5 5 . 10 30 . 30 15 . 5 . 10 70 . . 5 . . . 5 Destroy Leader 918 | . 36 10 20 78 20 134 30 . 30 76 50 30 . 72 50 . 60 40 20 10 . 20 32 40 10 10 10 . 20 10 Allied During Kill 1322 | . . . . . 26 . 27 . 1 . . . . 402 496 . 227 29 31 . . . . 42 3 19 3 . 14 2 Successful Hack 254 | . 24 . 13 27 21 21 14 . 7 17 . 2 . 4 21 5 . 24 . . . . . . 16 . . . . 38 Disable Machine 255 | . . . 15 30 . 15 . . . 75 75 . . 15 . . . . . . . . 30 . . . . . . . Anti-Garrison Action 3750 | . . . . . 1450 . 50 . 150 . 1050 . . . 450 . 200 . . . . . . 400 . . . . . . Destroy Structure 753 | . 16 . . 3 184 44 40 . 25 26 110 2 . 54 57 . 8 1 . . . . 62 107 8 . . . . 6 Advance Influence 150 | . . . . . . . . . . . . . . . . . . . . . . . 150 . . . . . . . Partial Spotted 15 | . . . . . . . . . 15 . . . . . . . . . . . . . . . . . . . . . Lose Combat Pursuer 555 | . 45 . 15 75 30 15 15 . . . 30 . . . 45 . . . . . . . 30 150 . 90 . . . 15 Influence Decreases 15728 | 50 185 176 126 411 264 1827 507 800 236 1029 189 1589 884 311 444 1165 477 1247 584 497 57 130 379 201 765 545 362 55 66 170 Entered New Map 8916 | . 2 75 . 36 74 1218 427 690 196 477 119 1105 582 4 174 1085 337 823 272 80 57 . . 71 625 225 74 55 . 33 Time Decay 5404 | 50 183 101 126 352 . 589 . 110 . 522 . 334 302 267 . 80 . 404 262 417 . 110 354 . 120 270 278 . 56 117 Lost Part 528 | . . . . 23 170 20 20 . . 30 70 . . . 20 . . . 10 . . 20 25 70 . 10 10 . 10 20 Lost Ally 730 | . . . . . 20 . 60 . 40 . . . . 40 250 . 140 20 40 . . . . 60 20 40 . . . . Purge Threat 150 | . . . . . . . . . . . . 150 . . . . . . . . . . . . . . . . . . Squads Dispatched 27 | . 1 . . 1 . 3 . . . 5 . 4 . 4 . . . 2 . . . . 4 . 1 . . . . 2 Investigation 1 | . . . . . . . . . . . . . . . . . . . . . . . 1 . . . . . . . Extermination 8 | . . . . . . . . . . 2 . 1 . 2 . . . . . . . . 1 . 1 . . . . 1 Reinforcement 12 | . 1 . . 1 . 3 . . . 3 . . . 2 . . . 1 . . . . . . . . . . . 1 Assault 4 | . . . . . . . . . . . . 3 . . . . . 1 . . . . . . . . . . . . Garrison 2 | . . . . . . . . . . . . . . . . . . . . . . . 2 . . . . . . . Intercept . | . . . . . . . . . . . . . . . . . . . . . . . . . . . . . . . Searches Triggered . | . . . . . . . . . . . . . . . . . . . . . . . . . . . . . . . Construction Impeded 1 | . . . . . . . . . . . . . . . . . . . . . . . . . . . . . . 1 Haulers Reinforced 3 | . . . . . . . . . . 1 . . . 1 . . . 1 . . . . . . . . . . . . Active Scanning Responses . | . . . . . . . . . . . . . . . . . . . . . . . . . . . . . . . Cargo Convoy Interrupts 1 | . . . . . . . . . . . . . . . . . . . . . . . 1 . . . . . . . Stealth | -11 -10 -10 -9 -8 -8 -8 -8 -7 -7 -7 -7 -6 -6 -6 -6 -6 -6 -6 -6 -6 -6 -5 -5 -5 -5 -5 -5 -5 -4 -4 --------- Run | Yrd Mat Min Mat Mat Gar Mat Gar Fac Gar Fac Gar Fac Was Fac Gar Fac Gar Fac Low Low Dat Pro Fac Gar Fac Upp Upp Zhi Pro Fac Distress Signals 8 | . 1 . 2 1 . . . . . 1 . . . . . . . . . . . 1 . . . . . . . 2 Communications Jammed 2 | . . . . . . 2 . . . . . . . . . . . . . . . . . . . . . . . . Distress Signals 2 | . . . . . . 2 . . . . . . . . . . . . . . . . . . . . . . . . Times Spotted 426 | . 15 2 10 23 40 30 27 1 18 16 39 7 . 13 44 1 23 6 8 6 . 7 21 34 2 13 1 . 6 13 Peak Tracking Total 11 | . 4 2 4 5 9 4 8 1 5 3 5 3 . 5 10 . 4 2 4 5 . 3 5 11 1 6 1 . 5 7 Tactical Retreats 27 | . 2 . 1 3 1 1 1 . . . 2 . . . 2 . . . . . . . 2 6 . 5 . . . 1 Traps | -11 -10 -10 -9 -8 -8 -8 -8 -7 -7 -7 -7 -6 -6 -6 -6 -6 -6 -6 -6 -6 -6 -5 -5 -5 -5 -5 -5 -5 -4 -4 ------- Run | Yrd Mat Min Mat Mat Gar Mat Gar Fac Gar Fac Gar Fac Was Fac Gar Fac Gar Fac Low Low Dat Pro Fac Gar Fac Upp Upp Zhi Pro Fac Traps Triggered 54 | . 1 . . . 7 1 3 1 2 2 6 1 . 2 2 . 12 1 . . . . . 12 . . . . . 1 Indirectly . | . . . . . . . . . . . . . . . . . . . . . . . . . . . . . . . Trap Hack Attempts . | . . . . . . . . . . . . . . . . . . . . . . . . . . . . . . . Triggered . | . . . . . . . . . . . . . . . . . . . . . . . . . . . . . . . Disarmed . | . . . . . . . . . . . . . . . . . . . . . . . . . . . . . . . Reprogrammed . | . . . . . . . . . . . . . . . . . . . . . . . . . . . . . . . Reused . | . . . . . . . . . . . . . . . . . . . . . . . . . . . . . . . Traps Extracted . | . . . . . . . . . . . . . . . . . . . . . . . . . . . . . . . Installed . | . . . . . . . . . . . . . . . . . . . . . . . . . . . . . . . Triggered . | . . . . . . . . . . . . . . . . . . . . . . . . . . . . . . . Machines | -11 -10 -10 -9 -8 -8 -8 -8 -7 -7 -7 -7 -6 -6 -6 -6 -6 -6 -6 -6 -6 -6 -5 -5 -5 -5 -5 -5 -5 -4 -4 ---------- Run | Yrd Mat Min Mat Mat Gar Mat Gar Fac Gar Fac Gar Fac Was Fac Gar Fac Gar Fac Low Low Dat Pro Fac Gar Fac Upp Upp Zhi Pro Fac Machines Disabled 42 | . . . 1 2 6 1 1 . 1 5 10 . . 1 6 . 2 . . . . . 2 4 . . . . . . Max in Single Turn 2 | . . . 1 1 2 1 1 . 1 2 1 . . . 2 . 1 . . . . . 2 1 . . . . . . Garrison Relay 21 | . . . . . 5 . 1 . 1 . 4 . . . 3 . 3 . . . . . . 4 . . . . . . Phase Generator 2 | . . . . . 1 . . . . . . . . . 1 . . . . . . . . . . . . . . . Machines Repaired . | . . . . . . . . . . . . . . . . . . . . . . . . . . . . . . . Machines Dismantled . | . . . . . . . . . . . . . . . . . . . . . . . . . . . . . . . Machines Sabotaged . | . . . . . . . . . . . . . . . . . . . . . . . . . . . . . . . Overloaded Fab Kills . | . . . . . . . . . . . . . . . . . . . . . . . . . . . . . . . Hacking | -11 -10 -10 -9 -8 -8 -8 -8 -7 -7 -7 -7 -6 -6 -6 -6 -6 -6 -6 -6 -6 -6 -5 -5 -5 -5 -5 -5 -5 -4 -4 --------- Run | Yrd Mat Min Mat Mat Gar Mat Gar Fac Gar Fac Gar Fac Was Fac Gar Fac Gar Fac Low Low Dat Pro Fac Gar Fac Upp Upp Zhi Pro Fac Machines Accessed 72 | . 2 . 4 7 3 7 1 1 1 4 3 2 . 9 3 2 1 5 . 1 4 . 5 1 1 . . 4 . 1 Terminals 36 | . 1 . 1 5 3 3 1 . 1 2 3 1 . 5 3 . 1 3 . . . . 1 1 1 . . . . . Fabricators 3 | . . . . . . . . . . . . . . 2 . . . 1 . . . . . . . . . . . . Repair Stations 7 | . . . . . . 2 . . . 1 . 1 . 1 . 1 . . . . . . . . . . . . . 1 Recycling Units 8 | . 1 . 2 1 . 1 . . . . . . . . . . . . . . . . 3 . . . . . . . Scanalyzers 2 | . . . 1 . . . . . . . . . . . . . . 1 . . . . . . . . . . . . Garrison Access 7 | . . . . 1 . 1 . 1 . 1 . . . 1 . 1 . . . . . . 1 . . . . . . . Total Hacks 183 | . 6 . 9 17 7 15 2 1 1 7 6 5 . 18 5 4 3 11 . 1 32 . 9 1 2 . . 17 . 4 Successful 112 | . 2 . 5 9 2 9 1 1 1 4 . 3 . 8 2 4 . 5 . 1 32 . 2 . 1 . . 17 . 3 Failed 71 | . 4 . 4 8 5 6 1 . . 3 6 2 . 10 3 . 3 6 . . . . 7 1 1 . . . . 1 Catastrophic 20 | . 1 . 1 1 2 1 1 . . 2 1 . . 3 1 . 1 2 . . . . 1 1 1 . . . . . Database Lockouts . | . . . . . . . . . . . . . . . . . . . . . . . . . . . . . . . Manual 66 | . 6 . 6 15 1 11 1 . . 1 . . . 11 . . . 7 . . . . 5 . 2 . . . . . Terminals 75 | . 4 . 2 12 7 7 2 . 1 2 6 3 . 10 5 . 3 6 . . . . 2 1 2 . . . . . Fabricators 7 | . . . . . . . . . . . . . . 5 . . . 2 . . . . . . . . . . . . Repair Stations 17 | . . . . . . 4 . . . 3 . 2 . 2 . 2 . . . . . . . . . . . . . 4 Recycling Units 20 | . 2 . 5 4 . 3 . . . . . . . . . . . . . . . . 6 . . . . . . . Scanalyzers 5 | . . . 2 . . . . . . . . . . . . . . 3 . . . . . . . . . . . . Garrison Access 9 | . . . . 1 . 1 . 1 . 2 . . . 1 . 2 . . . . . . 1 . . . . . . . Terminal Hacks 64 | . . . 2 2 2 1 1 . 1 1 . 1 . 1 2 . . . . 1 32 . . . . . . 17 . . Record 16 | . . . . . . . . . . . . . . . . . . . . . 11 . . . . . . 5 . . Part Schematic 16 | . . . . . . . . . . . . . . . . . . . . . 12 . . . . . . 4 . . Robot Schematic 6 | . . . . . . . . . . . . . . . . . . . . . 6 . . . . . . . . . Robot Analysis 5 | . . . 1 . . . . . . . . . . . . . . . . . . . . . . . . 4 . . Prototype ID Bank 7 | . . . . . . . . . . . . . . . . . . . . . 3 . . . . . . 4 . . Open Door 4 | . . . . . 1 . . . 1 . . . . . 1 . . . . 1 . . . . . . . . . . Branch Access Points 1 | . . . 1 . . . . . . . . . . . . . . . . . . . . . . . . . . . Emergency Access Points 2 | . . . . . 1 . . . . . . . . . 1 . . . . . . . . . . . . . . . Unreport Threat 1 | . . . . . . . . . . . . 1 . . . . . . . . . . . . . . . . . . Locate Traps 1 | . . . . . . . . . . . . . . 1 . . . . . . . . . . . . . . . . Transport Status 1 | . . . . . . . . . . 1 . . . . . . . . . . . . . . . . . . . . Zone Layout 3 | . . . . 2 . 1 . . . . . . . . . . . . . . . . . . . . . . . . Garrison Registry 1 | . . . . . . . 1 . . . . . . . . . . . . . . . . . . . . . . . Fabricator Hacks 3 | . . . . . . . . . . . . . . 2 . . . 1 . . . . . . . . . . . . Network Status 2 | . . . . . . . . . . . . . . 1 . . . 1 . . . . . . . . . . . . Build 1 | . . . . . . . . . . . . . . 1 . . . . . . . . . . . . . . . . Repair Station Hacks 10 | . . . . . . 2 . . . 1 . 2 . . . 2 . . . . . . . . . . . . . 3 Scan Component 6 | . . . . . . 1 . . . 1 . 1 . . . 1 . . . . . . . . . . . . . 2 Repair 4 | . . . . . . 1 . . . . . 1 . . . 1 . . . . . . . . . . . . . 1 Recycling Unit Hacks 1 | . . . . . . . . . . . . . . . . . . . . . . . 1 . . . . . . . Retrieve Matter 1 | . . . . . . . . . . . . . . . . . . . . . . . 1 . . . . . . . Scanalyzer 4 | . . . 2 . . . . . . . . . . . . . . 2 . . . . . . . . . . . . Insert Component 2 | . . . 1 . . . . . . . . . . . . . . 1 . . . . . . . . . . . . Analyze 2 | . . . 1 . . . . . . . . . . . . . . 1 . . . . . . . . . . . . Garrison Access Hacks 9 | . . . . 1 . 1 . 1 . 2 . . . 1 . 2 . . . . . . 1 . . . . . . . Unlock Access 7 | . . . . 1 . 1 . 1 . 1 . . . 1 . 1 . . . . . . 1 . . . . . . . Coupler Status 2 | . . . . . . . . . . 1 . . . . . 1 . . . . . . . . . . . . . . Unauthorized Hacks 21 | . 2 . 1 6 . 5 . . . . . . . 4 . . . 2 . . . . . . 1 . . . . . Terminals 8 | . . . . 3 . 1 . . . . . . . 2 . . . 1 . . . . . . 1 . . . . . Botnet 6 | . . . . 2 . 1 . . . . . . . 2 . . . 1 . . . . . . . . . . . . Operators 2 | . . . . 1 . . . . . . . . . . . . . . . . . . . . 1 . . . . . Fabricators 3 | . . . . . . . . . . . . . . 2 . . . 1 . . . . . . . . . . . . Report 1 | . . . . . . . . . . . . . . 1 . . . . . . . . . . . . . . . . Haulers 2 | . . . . . . . . . . . . . . 1 . . . 1 . . . . . . . . . . . . Repair Stations 1 | . . . . . . 1 . . . . . . . . . . . . . . . . . . . . . . . . Mechanics 1 | . . . . . . 1 . . . . . . . . . . . . . . . . . . . . . . . . Recycling Units 9 | . 2 . 1 3 . 3 . . . . . . . . . . . . . . . . . . . . . . . . Reject 3 | . 1 . . 1 . 1 . . . . . . . . . . . . . . . . . . . . . . . . Recyclers 4 | . 1 . 1 1 . 1 . . . . . . . . . . . . . . . . . . . . . . . . Mask 2 | . . . . 1 . 1 . . . . . . . . . . . . . . . . . . . . . . . . Scanalyzers . | . . . . . . . . . . . . . . . . . . . . . . . . . . . . . . . Garrison Access . | . . . . . . . . . . . . . . . . . . . . . . . . . . . . . . . Data Cores Recovered 1 | . . . . . . 1 . . . . . . . . . . . . . . . . . . . . . . . . Used . | . . . . . . . . . . . . . . . . . . . . . . . . . . . . . . . Hacking Detections 53 | . 2 . 2 6 3 3 1 1 1 4 3 1 . 9 2 1 1 5 . . . . 5 1 1 . . . . 1 Full Trace Events 3 | . . . . . . . . . . . 1 . . . 1 . . . . . . . 1 . . . . . . . Feedback Events 1 | . . . . . . . . . . . . . . . . . . . . . . . 1 . . . . . . . Corruption 1 | . . . . . . . . . . . . . . . . . . . . . . . 1 . . . . . . . Feedback Blocked . | . . . . . . . . . . . . . . . . . . . . . . . . . . . . . . . Robot Schematics Acquired 6 | . . . . . . . . . . . . . . . . . . . . . 6 . . . . . . . . . Robots Built . | . . . . . . . . . . . . . . . . . . . . . . . . . . . . . . . Authchips . | . . . . . . . . . . . . . . . . . . . . . . . . . . . . . . . Time . | . . . . . . . . . . . . . . . . . . . . . . . . . . . . . . . Total Robot Build Rating . | . . . . . . . . . . . . . . . . . . . . . . . . . . . . . . . Part Schematics Acquired 18 | . . . 1 . . . . . . . . . . . . . . 1 . . 12 . . . . . . 4 . . Parts Built 1 | . . . . . . . . . . . . . . 1 . . . . . . . . . . . . . . . . Authchips . | . . . . . . . . . . . . . . . . . . . . . . . . . . . . . . . Time 128 | . . . . . . . . . . . . . . 128 . . . . . . . . . . . . . . . . Total Part Build Rating 8 | . . . . . . . . . . . . . . 8 . . . . . . . . . . . . . . . . Parts Repaired 4 | . . . . . . 1 . . . . . 1 . . . 1 . . . . . . . . . . . . . 1 Time 163 | . . . . . . 44 . . . . . 26 . . . 62 . . . . . . . . . . . . . 31 Parts Recycled . | . . . . . . . . . . . . . . . . . . . . . . . . . . . . . . . Recycled Matter . | . . . . . . . . . . . . . . . . . . . . . . . . . . . . . . . Retrieved Matter . | . . . . . . . . . . . . . . . . . . . . . . . . . . . . . . . Retrieved Components . | . . . . . . . . . . . . . . . . . . . . . . . . . . . . . . . Parts Scanalyzed 2 | . . . 1 . . . . . . . . . . . . . . 1 . . . . . . . . . . . . Part Schematics Acquired 2 | . . . 1 . . . . . . . . . . . . . . 1 . . . . . . . . . . . . Parts Damaged . | . . . . . . . . . . . . . . . . . . . . . . . . . . . . . . . Bothacking | -11 -10 -10 -9 -8 -8 -8 -8 -7 -7 -7 -7 -6 -6 -6 -6 -6 -6 -6 -6 -6 -6 -5 -5 -5 -5 -5 -5 -5 -4 -4 ------------ Run | Yrd Mat Min Mat Mat Gar Mat Gar Fac Gar Fac Gar Fac Was Fac Gar Fac Gar Fac Low Low Dat Pro Fac Gar Fac Upp Upp Zhi Pro Fac Used RIF Installer 7 | . . . . . 1 . 1 . 1 . 1 . . . 1 . 1 . . . . . . 1 . . . . . . Hotswap 1 | . . . . . . . . . . . . . . . . . . . . . . . . 1 . . . . . . Command Fork 1 | . . . . . . . . . 1 . . . . . . . . . . . . . . . . . . . . . Signal Jammer 1 | . . . . . . . 1 . . . . . . . . . . . . . . . . . . . . . . . Patrol Navigation 1 | . . . . . . . . . . . . . . . 1 . . . . . . . . . . . . . . . Autooverride 2 | . . . . . . . . . . . 1 . . . . . 1 . . . . . . . . . . . . . Robots Hacked 12 | . . . . . . . . . . . . . . 2 . . . . 3 . . . . 6 . 1 . . . . Non-combat . | . . . . . . . . . . . . . . . . . . . . . . . . . . . . . . . Combat 12 | . . . . . . . . . . . . . . 2 . . . . 3 . . . . 6 . 1 . . . . Autooverrided 12 | . . . . . . . . . . . . . . 2 . . . . 3 . . . . 6 . 1 . . . . Robot Hacks Applied . | . . . . . . . . . . . . . . . . . . . . . . . . . . . . . . . Relay Couplers Released 84 | . . . . . 19 . 4 . 3 . 15 . . . 13 . 13 . . . . . . 17 . . . . . . Machine Destruction 84 | . . . . . 19 . 4 . 3 . 15 . . . 13 . 13 . . . . . . 17 . . . . . . Attached 7 | . . . . . . . . . . . 1 1 . . 2 . 1 . . 1 . . 1 . . . . . . . Fabnet Peak Effective % . | . . . . . . . . . . . . . . . . . . . . . . . . . . . . . . . Robots Rewired 20 | . . . . . . . 3 . . . . . . . 11 . 3 . . . . . . 2 . 1 . . . . Allies Hacked 1 | . . . . . . . . . . . . . . . . . . . . . . . . . . . . . . 1 Hacks Repelled . | . . . . . . . . . . . . . . . . . . . . . . . . . . . . . . . Allies | -11 -10 -10 -9 -8 -8 -8 -8 -7 -7 -7 -7 -6 -6 -6 -6 -6 -6 -6 -6 -6 -6 -5 -5 -5 -5 -5 -5 -5 -4 -4 -------- Run | Yrd Mat Min Mat Mat Gar Mat Gar Fac Gar Fac Gar Fac Was Fac Gar Fac Gar Fac Low Low Dat Pro Fac Gar Fac Upp Upp Zhi Pro Fac Total Allies 56 | . . . . . 2 . 3 . 2 . . . 20 2 11 . 3 . 3 . . . . 8 . 2 . . . . Largest Group 20 | . . . . . 2 . 3 . 2 . . . 20 20 13 8 8 3 3 . . . . 4 2 1 1 1 1 1 Highest-Rated Group 764 | . . . . . 50 . 120 . 51 . . . 764 764 502 358 358 129 115 . . . . 135 80 51 30 30 30 30 Highest-Rated Ally 51 | . . . . . 25 . 40 . 31 . . . 50 50 51 51 51 43 47 . . . . 51 51 51 30 30 30 30 Total Orders . | . . . . . . . . . . . . . . . . . . . . . . . . . . . . . . . Ally Attacks 440 | . . . . . 14 . 9 . 5 . . . 4 75 149 . 66 38 15 . . . . 27 8 16 . . 13 1 Total Damage 11946 | . . . . . 423 . 222 . 134 . . . 124 2440 3837 . 2125 954 369 . . . . 447 200 228 . . 415 28 Kills 99 | . . . . . 5 . 5 . . . . . 1 15 26 . 20 8 5 . . . . 6 1 5 . . 2 . Allies Corrupted 2 | . . . . . . . . . . . . . . . 1 . 1 . . . . . . . . . . . . . Allies Melted 1 | . . . . . . . . . . . . . . . 1 . . . . . . . . . . . . . . . Intel | -11 -10 -10 -9 -8 -8 -8 -8 -7 -7 -7 -7 -6 -6 -6 -6 -6 -6 -6 -6 -6 -6 -5 -5 -5 -5 -5 -5 -5 -4 -4 ------- Run | Yrd Mat Min Mat Mat Gar Mat Gar Fac Gar Fac Gar Fac Was Fac Gar Fac Gar Fac Low Low Dat Pro Fac Gar Fac Upp Upp Zhi Pro Fac Active Infowar (turns) 5484 | 179 323 275 376 927 1419 1639 170 . . . . . . . . . . . . 2 . . . . . . . . 1 173 Sensors 2 | . . . 2 . . . . . . . . . . . . . . . . . . . . . . . . . . . IFF 173 | . . . . . . . . . . . . . . . . . . . . . . . . . . . . . . 173 Terrain 2 | . . . . . . . . . . . . . . . . . . . . 2 . . . . . . . . . . Traps 1 | . . . . . . . . . . . . . . . . . . . . . . . . . . . . . 1 . Seismic 2614 | 179 323 275 374 927 536 . . . . . . . . . . . . . . . . . . . . . . . . . Jamming 2692 | . . . . . 883 1639 170 . . . . . . . . . . . . . . . . . . . . . . . Robot Analysis Total 5 | . . . 1 . . . . . . . . . . . . . . . . . . . . . . . . 4 . . Derelict Logs Recovered 4 | . . . . . . . . . . . . . . . . . . . 1 1 . 1 . . . . . . 1 . Drone Launches . | . . . . . . . . . . . . . . . . . . . . . . . . . . . . . . . Drone Recoveries . | . . . . . . . . . . . . . . . . . . . . . . . . . . . . . . . Exploration | -11 -10 -10 -9 -8 -8 -8 -8 -7 -7 -7 -7 -6 -6 -6 -6 -6 -6 -6 -6 -6 -6 -5 -5 -5 -5 -5 -5 -5 -4 -4 ------------- Run | Yrd Mat Min Mat Mat Gar Mat Gar Fac Gar Fac Gar Fac Was Fac Gar Fac Gar Fac Low Low Dat Pro Fac Gar Fac Upp Upp Zhi Pro Fac Turns Passed 30288 | 237 387 287 435 1013 3480 1846 775 223 1236 1449 2911 759 676 914 2057 174 1396 962 579 1307 222 791 1364 2086 248 581 600 252 585 456 Spaces Moved 12362 | 107 179 96 192 375 1631 772 245 105 535 657 1008 293 372 509 828 56 442 373 211 517 94 273 487 682 152 308 337 145 228 153 Core 6 | 6 . . . . . . . . . . . . . . . . . . . . . . . . . . . . . . Treads 8098 | . . . . . 402 176 245 105 246 . 464 293 372 509 828 56 442 373 211 517 94 273 487 682 152 308 337 145 228 153 Legs 4139 | 101 179 96 192 375 1110 596 . . 289 657 544 . . . . . . . . . . . . . . . . . . . Wheels 119 | . . . . . 119 . . . . . . . . . . . . . . . . . . . . . . . . . Hover . | . . . . . . . . . . . . . . . . . . . . . . . . . . . . . . . Flight . | . . . . . . . . . . . . . . . . . . . . . . . . . . . . . . . Fastest Speed 50 | 50 120 260 190 190 140 170 165 165 160 190 190 165 160 160 160 240 240 240 240 232 232 232 152 152 160 160 160 160 160 160 Average Speed 199 | 116 133 260 190 190 181 185 168 165 177 190 238 211 166 160 195 240 240 240 240 239 232 232 227 227 160 161 169 161 219 235 Slowest Speed 400 | 120 400 260 190 190 240 260 250 246 190 190 260 246 245 160 240 240 240 240 240 240 232 232 232 240 160 240 240 240 240 240 Overloaded Moves . | . . . . . . . . . . . . . . . . . . . . . . . . . . . . . . . Propulsion Burnouts . | . . . . . . . . . . . . . . . . . . . . . . . . . . . . . . . Robots Hopped . | . . . . . . . . . . . . . . . . . . . . . . . . . . . . . . . Potential Cave-ins . | . . . . . . . . . . . . . . . . . . . . . . . . . . . . . . . Cave-ins Triggered . | . . . . . . . . . . . . . . . . . . . . . . . . . . . . . . . Exploration Rate (%) 40 | 4 30 26 23 40 94 72 36 4 56 19 84 5 96 17 74 1 52 12 52 74 69 51 13 59 5 48 51 60 36 5 Regions Visited 30 Branch Regions 9 Pre-discovered Areas 5 | . . 1 . . . . . . . . . . . . . . . . . . 1 . . . . . . 3 . . Known Exits Taken 7 | . . . . 1 . 1 . 1 . 1 . . . 1 . 1 . . . . . . 1 . . . . . . . Unknown Exits Taken 14 | 1 1 1 1 . . . . . . . . . . . . . . 1 1 1 1 1 . . 1 1 1 1 1 . Scrap Searched 10 | . . . . . . . . . . . . . . . . . . . 1 3 . . . . . 2 2 . 2 . Spaces Dug 47 | . 10 . . . . 15 3 . . . 10 . . . 6 . . . . . . . 2 1 . . . . . . Terrain Destroyed 470 | . 19 . . . 100 44 5 . 1 30 72 . . 24 70 . 1 . 1 4 . 1 36 54 . 1 . . 5 2 Melee 16 | . . . . . . 1 3 . . . 10 . . . . . . . . . . . 2 . . . . . . . Projectile 64 | . . . . . . 36 . . 1 1 5 . . 6 5 . 1 . . . . 1 . 1 . . . . 5 2 AOE 371 | . 19 . . . 100 7 2 . . 29 57 . . 18 65 . . . . . . . 31 43 . . . . . . Terrain Rammed . | . . . . . . . . . . . . . . . . . . . . . . . . . . . . . . . Walls Destroyed . | . . . . . . . . . . . . . . . . . . . . . . . . . . . . . . . Machines Disabled . | . . . . . . . . . . . . . . . . . . . . . . . . . . . . . . . Actions | -11 -10 -10 -9 -8 -8 -8 -8 -7 -7 -7 -7 -6 -6 -6 -6 -6 -6 -6 -6 -6 -6 -5 -5 -5 -5 -5 -5 -5 -4 -4 --------- Run | Yrd Mat Min Mat Mat Gar Mat Gar Fac Gar Fac Gar Fac Was Fac Gar Fac Gar Fac Low Low Dat Pro Fac Gar Fac Upp Upp Zhi Pro Fac Total 15852 | 157 273 115 236 555 1963 1057 427 154 699 775 1281 388 434 600 1093 95 650 407 255 560 99 361 632 1059 157 352 351 162 274 231 Wait 1159 | 6 36 . 10 42 88 150 11 38 36 24 22 31 34 66 27 32 69 4 29 7 . 48 45 207 . 15 7 . 22 53 Move 12338 | 106 178 95 191 374 1629 772 244 105 534 657 1007 293 371 509 827 56 441 372 210 516 93 272 487 681 151 307 336 144 227 153 Hop . | . . . . . . . . . . . . . . . . . . . . . . . . . . . . . . . Pick Up 231 | 5 8 4 5 22 28 11 5 3 14 13 19 20 5 5 12 3 3 2 1 4 . 1 10 17 2 1 . 3 1 4 Fast Attach 89 | 7 3 . 1 3 14 2 2 2 7 5 5 2 3 1 7 . 4 1 . 3 3 . 3 . . 1 1 5 1 3 Attach 92 | . 1 1 4 5 11 1 2 3 6 3 13 3 1 . 4 1 . . . 3 . 6 6 11 . 1 . . 3 3 Detach 42 | . 1 1 3 1 4 . 1 1 3 . 4 1 4 . 7 . . . . 3 . . 2 3 . . . . . 3 Swap 253 | . 5 2 5 14 32 33 20 . 5 7 38 2 3 5 11 1 9 4 1 5 . 2 18 21 . 1 . 4 2 3 Drop 263 | . 7 1 2 23 33 19 8 2 21 20 27 6 12 7 14 1 8 5 1 5 3 1 10 13 2 2 1 6 1 2 Fire 973 | 33 33 10 15 68 104 64 77 . 72 43 87 19 . 7 64 . 42 12 13 14 . 31 43 74 . 18 6 . 17 7 Melee 133 | . . . . . . 2 24 . 1 . 39 . 1 . 30 . 31 . . . . . 2 3 . . . . . . Ram . | . . . . . . . . . . . . . . . . . . . . . . . . . . . . . . . Kick 10 | . 1 1 . 3 . 2 . . . 3 . . . . . . . . . . . . . . . . . . . . Crush 21 | . . . . . . 1 . . . . . 3 . . 1 1 . 7 . . . . 6 . 2 . . . . . Escape Stasis 80 | . . . . . 20 . . . . . 20 . . . . . 21 . . . . . . 19 . . . . . . Rewire 168 | . . . . . . . 33 . . . . 8 . . 89 . 22 . . . . . . 10 . 6 . . . . Trap . | . . . . . . . . . . . . . . . . . . . . . . . . . . . . . . . Miscellaneous . | . . . . . . . . . . . . . . . . . . . . . . . . . . . . . . . Route ------- -11/Scrapyard -10/Materials -10/Mines -9/Materials (discovered 3 exits: *Mat / Min x2) -8/Materials (discovered 2 exits: *Fac / Gar) -8/Garrison (discovered 3 exits: *Mat x3) -8/Materials (discovered 2 exits: *Fac / Gar) -8/Garrison (discovered 3 exits: *Fac x3) -7/Factory -7/Garrison (discovered 2 exits: *Fac x2) -7/Factory (discovered 3 exits: *Fac / [*Low] / Gar) -7/Garrison (discovered 3 exits: *Fac x3) -6/Factory -6/Waste -6/Factory -6/Garrison (discovered 2 exits: *Fac x2) -6/Factory -6/Garrison (discovered 3 exits: *Fac x2 / *Fac) -6/Factory (discovered 2 exits: [*Low x2]) -6/Lower Caves -6/Lower Caves -6/Data Miner -5/Proximity Caves -5/Factory (discovered 2 exits: *Fac / Gar) -5/Garrison (discovered 3 exits: *Fac x3) -5/Factory -5/Upper Caves -5/Upper Caves -5/Zhirov -4/Proximity Caves -4/Factory History --------- Turn | Location | Event 6 | -11/Scrapyard | Discovered new exit (range 15) 238 | -11/Scrapyard | Entered Materials 346 | -10/Materials | Build established: Mutant 590 | -10/Materials | Discovered new exit (range 11) 625 | -10/Materials | Entered Mines 896 | -10/Mines | Discovered new exit (range 4) 905 | -10/Mines | Learned location of Storage (-7) 912 | -10/Mines | Entered Materials 912 | -9/Materials | Evolved 2 slots: Propulsion x1, Utility x1 1163 | -9/Materials | Discovered new exit (range 11) 1291 | -9/Materials | Identified exit to Mines 1347 | -9/Materials | Build established: Scavenger-Mutant 1347 | -9/Materials | Entered another Materials area 1347 | -8/Materials | Evolved 2 slots: Propulsion x1, Utility x1 1795 | -8/Materials | Discovered new exit (range 16) 2358 | -8/Materials | Identified exit to Garrison 2360 | -8/Materials | Entered Garrison 2403 | -8/Garrison | Rescued a captive Derelict 2404 | -8/Garrison | Rescued a captive Derelict 2434 | -8/Garrison | Triggered checkpoint 2507 | -8/Garrison | Garrison Relay disabled 2630 | -8/Garrison | Triggered checkpoint 2640 | -8/Garrison | Triggered checkpoint 2678 | -8/Garrison | Destroyed 11 combat bots 2686 | -8/Garrison | Lost 3 parts (2n1u) 2980 | -8/Garrison | Discovered new exit (range 10) 3098 | -8/Garrison | Triggered checkpoint 3133 | -8/Garrison | Garrison Relay disabled 3430 | -8/Garrison | Triggered checkpoint 3462 | -8/Garrison | Discovered new exit (range 11) 3590 | -8/Garrison | Triggered checkpoint 3597 | -8/Garrison | Garrison Relay disabled 3840 | -8/Garrison | Phase Generator disabled 4112 | -8/Garrison | Garrison Relay disabled 4206 | -8/Garrison | Triggered checkpoint 4303 | -8/Garrison | Installed Relay Interface Framework 4373 | -8/Garrison | Discovered new exit (range 7) 4604 | -8/Garrison | Triggered checkpoint 4606 | -8/Garrison | Garrison Relay disabled 4812 | -8/Garrison | Triggered checkpoint 5243 | -8/Garrison | Spotted B-75 Beast 5243 | -8/Garrison | Spotted B-75 Beast 5318 | -8/Garrison | Destroyed B-75 Beast 5328 | -8/Garrison | Lost 3 parts (1u2w) 5380 | -8/Garrison | Core integrity fell below 50% 5383 | -8/Garrison | Destroyed B-75 Beast 5407 | -8/Garrison | Lost 8 parts (1p4n2u1w) 5840 | -8/Garrison | Entered Materials 5915 | -8/Materials | Repaired Imp. Medium Armor Plating 6457 | -8/Materials | Discovered new exit (range 16) 7569 | -8/Materials | Build established: Mutant 7686 | -8/Materials | Identified exit to Garrison 7686 | -8/Materials | Entered Garrison 7790 | -8/Garrison | Expanded RIF knowledge: Signal Jamming 7862 | -8/Garrison | Triggered checkpoint 7870 | -8/Garrison | Spotted B-75 Beast 7891 | -8/Garrison | Destroyed B-75 Beast 7908 | -8/Garrison | Core integrity fell below 20% 7949 | -8/Garrison | Destroyed 8 combat bots 8005 | -8/Garrison | Garrison Relay disabled 8021 | -8/Garrison | Discovered new exit (range 42) 8021 | -8/Garrison | Discovered new exit (range 76) 8021 | -8/Garrison | Discovered new exit (range 68) 8225 | -8/Garrison | Build established: Scavenger-Mutant 8242 | -8/Garrison | Triggered checkpoint 8263 | -8/Garrison | Triggered checkpoint 8301 | -8/Garrison | Lost 3 allies 8358 | -8/Garrison | Destroyed 9 combat bots 8461 | -8/Garrison | Entered Factory 8461 | -7/Factory | Evolved 2 slots: Power x1, Weapon x1 8684 | -7/Factory | Identified exit to Garrison 8684 | -7/Factory | Entered Garrison 8712 | -7/Garrison | Triggered checkpoint 8782 | -7/Garrison | Garrison Relay disabled 8837 | -7/Garrison | Rescued a captive Derelict 8840 | -7/Garrison | Rescued a captive Derelict 9046 | -7/Garrison | Triggered checkpoint 9064 | -7/Garrison | Triggered checkpoint 9140 | -7/Garrison | Build established: Scavenger-Gunner 9227 | -7/Garrison | Triggered checkpoint 9323 | -7/Garrison | Spotted B-75 Beast 9323 | -7/Garrison | Spotted B-75 Beast 9476 | -7/Garrison | Triggered checkpoint 9519 | -7/Garrison | Discovered new exit (range 15) 9706 | -7/Garrison | Triggered checkpoint 9842 | -7/Garrison | Discovered new exit (range 11) 9859 | -7/Garrison | Expanded RIF knowledge: Command Fork 9920 | -7/Garrison | Entered Factory 10473 | -7/Factory | Build established: Bothacker-Gunner 10858 | -7/Factory | Build established: Scavenger-Gunner 10881 | -7/Factory | Discovered new exit (range 8) 11055 | -7/Factory | Lost 3 parts (1p1u1w) 11160 | -7/Factory | Discovered new exit (range 6) 11330 | -7/Factory | Build established: Bothacker-Gunner 11369 | -7/Factory | Identified exit to Garrison 11369 | -7/Factory | Entered Garrison 11511 | -7/Garrison | Triggered checkpoint 11592 | -7/Garrison | Garrison Relay disabled 12169 | -7/Garrison | Destroyed 7 combat bots 12195 | -7/Garrison | Triggered checkpoint 12229 | -7/Garrison | Garrison Relay disabled 12278 | -7/Garrison | Build established: Scavenger-Gunner 12347 | -7/Garrison | Triggered checkpoint 12360 | -7/Garrison | Discovered new exit (range 11) 12696 | -7/Garrison | Build established: Bothacker-Gunner 12699 | -7/Garrison | Heavy support dispatched to Factory 12903 | -7/Garrison | Triggered checkpoint 12915 | -7/Garrison | Triggered checkpoint 12940 | -7/Garrison | Core integrity fell below 50% 12970 | -7/Garrison | Lost 4 parts (3n1u) 13154 | -7/Garrison | Discovered new exit (range 13) 13235 | -7/Garrison | Triggered checkpoint 13371 | -7/Garrison | Garrison Relay disabled 13533 | -7/Garrison | Triggered checkpoint 13683 | -7/Garrison | Triggered checkpoint 13734 | -7/Garrison | Garrison Relay disabled 13808 | -7/Garrison | Discovered new exit (range 15) 14004 | -7/Garrison | Expanded RIF knowledge: Autooverride 14031 | -7/Garrison | Heavy support dispatched to Factory 14136 | -7/Garrison | Build established: Scavenger-Gunner 14184 | -7/Garrison | H-XX Assembler disabled 14280 | -7/Garrison | Entered Factory 14280 | -6/Factory | Evolved 2 slots: Utility x2 14416 | -6/Factory | Repaired Hcp. Storage Unit 14580 | -6/Factory | Build established: Scavenger-Tank 14911 | -6/Factory | Build established: Scavenger-Gunner 14980 | -6/Factory | First assault squad dispatched 15039 | -6/Factory | Sucked down chute 15039 | -6/Factory | Entered Waste 15040 | -6/Waste | Joined by Warlord forces that had cleared the area 15429 | -6/Waste | A Compactor rumbled back to life 15429 | -6/Waste | Allies destroyed C-40 Crusher 15450 | -6/Waste | Build established: Scavenger-Tank 15459 | -6/Waste | Discovered new exit (range 12) 15715 | -6/Waste | Entered Factory 15715 | -6/Factory | Accompanied by 20 allies 15957 | -6/Factory | Spotted B-75 Beast 15998 | -6/Factory | Lost 3 allies 16171 | -6/Factory | Fabricated Adv. Heavy Treads (x1) 16585 | -6/Factory | Identified exit to Garrison 16593 | -6/Factory | P-60 Hacker assimilated allied P9-FDF(g) 16629 | -6/Factory | Entered Garrison 16629 | -6/Garrison | Accompanied by 13 allies 16669 | -6/Garrison | Expanded RIF knowledge: Patrol Navigation 16688 | -6/Garrison | P-60 Hacker assimilated allied KY-QZ4(g) 16723 | -6/Garrison | Triggered checkpoint 16770 | -6/Garrison | Garrison Relay disabled 16794 | -6/Garrison | Phase Generator disabled 16897 | -6/Garrison | Triggered checkpoint 16902 | -6/Garrison | Triggered checkpoint 17063 | -6/Garrison | Build established: Bothacker-Tank 17093 | -6/Garrison | Triggered checkpoint 17268 | -6/Garrison | Discovered new exit (range 10) 17353 | -6/Garrison | Triggered checkpoint 17727 | -6/Garrison | Lost 7 allies 17778 | -6/Garrison | Discovered new exit (range 12) 17783 | -6/Garrison | Destroyed 10 combat bots 18057 | -6/Garrison | Triggered checkpoint 18078 | -6/Garrison | Build established: Scavenger-Tank 18107 | -6/Garrison | Triggered checkpoint 18171 | -6/Garrison | Garrison Relay disabled 18401 | -6/Garrison | Triggered checkpoint 18488 | -6/Garrison | Build established: Bothacker-Tank 18590 | -6/Garrison | Garrison Relay disabled 18686 | -6/Garrison | Entered Factory 18686 | -6/Factory | Accompanied by 8 allies 18787 | -6/Factory | Repaired Imp. Heavy Treads 18860 | -6/Factory | Identified exit to Garrison 18860 | -6/Factory | Entered Garrison 18860 | -6/Garrison | Accompanied by 8 allies 19102 | -6/Garrison | Triggered checkpoint 19315 | -6/Garrison | Spotted B-75 Beast 19323 | -6/Garrison | Triggered checkpoint 19325 | -6/Garrison | Allies destroyed B-75 Beast 19354 | -6/Garrison | Triggered checkpoint 19445 | -6/Garrison | Discovered new exit (range 12) 19522 | -6/Garrison | Triggered checkpoint 19584 | -6/Garrison | Garrison Relay disabled 19686 | -6/Garrison | Triggered checkpoint 19766 | -6/Garrison | Triggered checkpoint 19808 | -6/Garrison | Garrison Relay disabled 19822 | -6/Garrison | Triggered checkpoint 19898 | -6/Garrison | Discovered new exit (range 5) 19982 | -6/Garrison | Discovered new exit (range 15) 20025 | -6/Garrison | Expanded RIF knowledge: Autooverride 20256 | -6/Garrison | Entered Factory 20256 | -6/Factory | Accompanied by 3 allies 20319 | -6/Factory | Build established: Botlord-Tank 20432 | -6/Factory | Discovered new exit (range 9) 20956 | -6/Factory | First assault squad dispatched 21134 | -6/Factory | Discovered new exit (range 14) 21218 | -6/Factory | Entered Lower Caves 21218 | -6/Lower Caves | Accompanied by 2 allies 21500 | -6/Lower Caves | Learned Factory emergency access door positions 21725 | -6/Lower Caves | Discovered new exit (range 12) 21797 | -6/Lower Caves | Entered another Lower Caves area 21814 | -6/Lower Caves | Learned Factory security intel 22063 | -6/Lower Caves | Build established: Bothacker-Tank 23083 | -6/Lower Caves | Discovered new exit (range 12) 23104 | -6/Lower Caves | Entered Data Miner 23106 | -6/Data Miner | Discovered new exit (range 6) 23152 | -6/Data Miner | Met Data Miner 23203 | -6/Data Miner | Learned location of Section 7 (-2) 23203 | -6/Data Miner | Acquired the access code to Warlord's prototype stash 23234 | -6/Data Miner | Received God Mode back door access code from Data Miner 23326 | -6/Data Miner | Entered Proximity Caves 23422 | -5/Proximity Caves | Spotted B-75 Beast 23448 | -5/Proximity Caves | Spotter reported a threat 23449 | -5/Proximity Caves | Core integrity fell below 50% 23480 | -5/Proximity Caves | Destroyed B-75 Beast 23508 | -5/Proximity Caves | Lost 4 parts (1n1u2w) 23531 | -5/Proximity Caves | Learned Factory trap positions 24096 | -5/Proximity Caves | Discovered new exit (range 9) 24117 | -5/Proximity Caves | Entered Factory 24117 | -5/Factory | Evolved 2 slots: Power x1, Utility x1 24118 | -5/Factory | Loaded intel: 136 trap records 24347 | -5/Factory | Discovered new exit (range 8) 25367 | -5/Factory | Garrison activated, responded to threat 25441 | -5/Factory | Cargo convoy interrupted 25481 | -5/Factory | Identified exit to Garrison 25481 | -5/Factory | Entered Garrison 25515 | -5/Garrison | Triggered checkpoint 25603 | -5/Garrison | Garrison Relay disabled 25780 | -5/Garrison | Spotted B-75 Beast 25882 | -5/Garrison | Destroyed B-75 Beast 25993 | -5/Garrison | Build established: Botlord-Tank 26042 | -5/Garrison | Triggered checkpoint 26111 | -5/Garrison | Lost 3 parts (1u2w) 26493 | -5/Garrison | Triggered checkpoint 26538 | -5/Garrison | Lost 3 allies 26568 | -5/Garrison | Lost 4 parts (1n2u1w) 26593 | -5/Garrison | Discovered new exit (range 14) 26725 | -5/Garrison | Triggered checkpoint 26804 | -5/Garrison | Triggered checkpoint 26806 | -5/Garrison | Triggered checkpoint 27001 | -5/Garrison | Triggered checkpoint 27035 | -5/Garrison | Garrison Relay disabled 27125 | -5/Garrison | Discovered new exit (range 9) 27279 | -5/Garrison | Triggered checkpoint 27407 | -5/Garrison | Triggered checkpoint 27435 | -5/Garrison | Garrison Relay disabled 27477 | -5/Garrison | Expanded RIF knowledge: Hotswap 27507 | -5/Garrison | Garrison Relay disabled 27564 | -5/Garrison | Discovered new exit (range 3) 27567 | -5/Garrison | Entered Factory 27567 | -5/Factory | Accompanied by 2 allies 27791 | -5/Factory | Discovered new exit (range 15) 27815 | -5/Factory | Entered Upper Caves 27815 | -5/Upper Caves | Accompanied by 1 ally 28177 | -5/Upper Caves | Attracted the attention of an 0b10 outpost 28356 | -5/Upper Caves | Discovered new exit (range 12) 28396 | -5/Upper Caves | Entered another Upper Caves area 28396 | -5/Upper Caves | Accompanied by 1 ally 28495 | -5/Upper Caves | Spotted B-75 Beast 28514 | -5/Upper Caves | Destroyed B-75 Beast 28980 | -5/Upper Caves | Discovered new exit (range 12) 28996 | -5/Upper Caves | Entered Zhirov 28996 | -5/Zhirov | Accompanied by 1 ally 28998 | -5/Zhirov | Discovered new exit (range 3) 29027 | -5/Zhirov | Met Zhirov 29066 | -5/Zhirov | Found Alien Artifact 29084 | -5/Zhirov | Found Alien Artifact 29084 | -5/Zhirov | Identified Integrated Reactor 29084 | -5/Zhirov | Installed Integrated Reactor, increased core energy generation (+10) 29171 | -5/Zhirov | Learned location of Quarantine (-2) 29171 | -5/Zhirov | Learned location of Testing (-3) 29171 | -5/Zhirov | Learned location of Command (-1) 29186 | -5/Zhirov | Zhirov requested help retrieving the SGEMP Prototype 29248 | -5/Zhirov | Entered Proximity Caves 29248 | -4/Proximity Caves | Accompanied by 1 ally 29657 | -4/Proximity Caves | Spotted B-86 Titan 29701 | -4/Proximity Caves | Destroyed B-86 Titan 29809 | -4/Proximity Caves | Discovered new exit (range 7) 29817 | -4/Proximity Caves | Learned 4 Research zone layouts 29833 | -4/Proximity Caves | Entered Factory 29833 | -4/Factory | Accompanied by 1 ally 29833 | -4/Factory | Evolved 2 slots: Utility x1, Weapon x1 30042 | -4/Factory | Repaired Imp. Heavy Treads 30289 | -4/Factory | Self-destructed Last Messages --------------- local area. 30262_ Activated siege mode. 30262_ Slug penetrates S-27 Virus. 30262_ S-27 Virus destroyed. 30262_ Slug penetrates Wall. 30266_ Acquired 30 matter. 30266_ Acquired 26 matter. 30266_ Acquired 27 matter. 30266_ Acquired 29 matter. 30266_ Acquired 47 matter. 30275_ Ended siege mode. 30275_ M-28 Smith repairs U-05 Engineer Welding Torch. 30275_ Dropped Unknown Leg. 30281_ Acquired Autogun. 30287_ Acquired 7 matter. 30287_ Neutrino Core destroyed. 30287_ Penetrated by Slug. 30287_ Imp. Heavy Treads destroyed. 30287_ U-05 Engineer builds a Wall. [Achievement: 40k Club] Map ----- +----------------------------------------------------+ | ?????????????????????????????????????????????????? | | ?????????????????????????????????????????????????? | | ?????????????????????????????????????????????????? | | ?????????????????????????????????????????????????? | | ?????????????????????????????????????????????????? | | ?????????????????????????????????????????????????? | | ?????????????????????????????????????????????????? | | ?????????????????????????????????????????????????? | | ?????????????????????????????????????????????????? | | ?????????????????????????????????????????????????? | | ?????????????????????????????????????????????????? | | ?????????????????????????????????????????????????? | | ?????????????????????????????????????????????????? | | ?????????????????????????????????????????????????? | | ?????????????????????????????????????????????????? | | ?????????????????????????????????????????????????? | | ?????????????????????????????????????????????????? | | ?????????????????????????????????????????????????? | | ?????????????????????????????????????????????????? | | ?????????????????????????????????????????????????? | | ?????????????????????????????????????????????????? | | ?????????????????????????????????????????????????? | | ?????#####################+##????????????????????? | | ?????# =# #????????????????????? | | ?????# ! =#= #????????????????????? | | ###### """""" """""" [u;@[ #????????????????????? | | + """""" """""" #![ #????????????????????? | | ###### """""" """""" *# #????????????????????? | | ?????# """""" """"" # #????????????????????? | | ?????# # ; ???????????????????? | | ?????# # + !??????????????????? | | ?????#################### # ?????????????????? | | ????????????????????????# s#####????????????????? | | ???????????????????????? ????????????????????? | | ???????????????????????? ????????????????????? | | ???????????????????????? ????????????????????? | | ???????????????????????? Y ???????????????????? | | ???????????????????????? s ???????????????????? | | ???????????????????????? s s ???????????????????? | | ???????????????????????? ???????????????????? | | ???????????????????????? ?????????????????????? | | ?????????????????????????????????????????????????? | | ?????????????????????????????????????????????????? | | ?????????????????????????????????????????????????? | | ?????????????????????????????????????????????????? | | ?????????????????????????????????????????????????? | | ?????????????????????????????????????????????????? | | ?????????????????????????????????????????????????? | | ?????????????????????????????????????????????????? | | ?????????????????????????????????????????????????? | +----------------------------------------------------+ Best States ------------- Heat Dissipation 72 Energy Generation 49 Energy Capacity 1330 Matter Stores 300 Matter Capacity 300 Sight Range 16 Terrain Scan Density 10 Jamming Range 12 Armor Coverage 1500 Resistance: TH 15 Resistance: EM 20 Weapon Shielding 90 Evasion (%) 55 Targeting Accuracy 8 Recoil Reduction 4 Relay Coupler Types 1 Relay Coupler Value 66 Item Schematics ----------------- Seismic Detector | -9/Materials | Scanalyzed Hpw. Tractor Beam | -6/Factory | Scanalyzed Combat Drone Bay | -6/Data Miner | Free Lgt. Regenerative Plating | -6/Data Miner | Free Enh. Armored Leg | -6/Data Miner | Free Imp. Energy Well | -6/Data Miner | Free Tiamat Missile Launcher | -6/Data Miner | Free Impulse Thruster | -6/Data Miner | Free Adv. Power Amplifier | -6/Data Miner | Free Hvy. Disruptor Cannon | -6/Data Miner | Free Gyrokinetic Inverter | -6/Data Miner | Free Particle Reactor | -6/Data Miner | Free Matter Neutralizer | -6/Data Miner | Free Imp. Thunder Leg | -6/Data Miner | Free Assault Drone Bay | -5/Zhirov | Free Exp. Heat Sink | -5/Zhirov | Free Exp. Optical Array | -5/Zhirov | Free Imp. Arc Thrower | -5/Zhirov | Free Robot Schematics ------------------ B-48 Gladiator | -6/Data Miner | Free Y-64 Sentinel | -6/Data Miner | Free G-50 Soldier | -6/Data Miner | Free X-77 Beamer | -6/Data Miner | Free G-67 Veteran | -6/Data Miner | Free H-77 Assassin | -6/Data Miner | Free Fabricated ------------ Adv. Heavy Treads | x1 | -6/Factory | Preloaded Repaired ---------- Imp. Medium Armor Plating | 39% | -8/Materials Hcp. Storage Unit | 6% | -6/Factory Imp. Heavy Treads | 14% | -6/Factory Imp. Heavy Treads | 2% | -4/Factory Alien Tech Used ----------------- Integrated Reactor Achievements -------------- 40k Club Generalissimo We Are Legion Challenges ------------ None Game ------ Seed TargetingAngularLance Manual? 0 Play Time 04:55:12 Cumulative 156.4 hours Start 2025.05.21 @ 08:41:08 End 2025.08.15 @ 20:24:32 Sessions 21 Manual Loads 0 Difficulty Rogue Special Mode None Game No. 81 Rogue 77 Adventurer 2 Explorer 2 Win Type - Total 2 Types 1/0/1/0/0/0/0/0/0/0 Lore% 62 Gallery% 63 Achievement% 52 Wizard Run 0 Options --------- Layout 0 ASCII 0 Keyboard 1 Movement Arrows Keybinds 0 Fullscreen 2 Font 18/Terminus Map View 76x50 Zoom Use 0% Tactical HUD 1 Map Filters NONE Filters NONE Steam 1 RUN: 0806e9c0-21d7-41f4-8cfa-49d34d750f7d